[Event "CZE-ch U16 Open 2023"]
[Site "Teplice"]
[Date "2023.03.14"]
[Round "5.11"]
[White "Zezula, Jakub"]
[Black "Sigut, Ondrej"]
[Result "1-0"]
[ECO "C07"]
[WhiteElo "1963"]
[BlackElo "1804"]
[Annotator "TA"]
[PlyCount "65"]
[EventDate "2023.03.09"]
[EventType "swiss"]
[EventCountry "CZE"]
[SourceTitle "playchess.com"]
[Source "ChessBase"]
[SourceQuality "1"]
[TimeControl "40/5400+30:1800+30"]

{[%evp 28,65,60,51,104,104,101,102,100,99,186,205,204,201,202,208,198,193,193,190,465,384,278,116,117,62,65,45,87,0,0,0,1440,1411,1091,691,5406,5306,2069,2005]} 1. e4 {[%emt 0:00:02]} e6 {[%emt 0:00:04]} 2. d4 {[%emt 0:00:08]} d5 {[%emt 0:00:05]} 3. Nd2 {[%emt 0:00:04]} c5 {[%emt 0:00:10]} 4. exd5 {[%emt 0:00:10]} Qxd5 {[%emt 0:00:06]} 5. Ngf3 {[%emt 0:00:07][%cal Bg1f3,Bf3d4,Bd4f5][%mdl 32]} cxd4 {[%emt 0:00:14]} 6. Bc4 {[%emt 0:00:06]} Qd6 {[%emt 0:00:07]} 7. O-O {[%emt 0:00:08]} Nc6 {[%emt 0:00:13]} 8. Nb3 {[%emt 0:00:19]} Nf6 {[%emt 0:00:15]} 9. Nbxd4 {[%emt 0:00:06]} Nxd4 {[%emt 0:00:11]} 10. Nxd4 {[%emt 0:00:03]} a6 {[%emt 0:00:08]} 11. Bb3 {[%emt 0:00:26]} Qc7 {[%emt 0:00:38]} 12. Re1 {[%emt 0:00:26]} Bd6 {[%emt 0:01:25]} 13. Nf5 {[%emt 0:01:17]} Bxh2+ {[%emt 0:11:24]} 14. Kh1 {[%emt 0:00:02]} O-O {[%emt 0:02:55]} 15. Nxg7 $1 {[%emt 0:00:05][%cal Od1d4] aiming for Qd4!} Kxg7 {[%emt 0:25:22] C07: French Tarrasch: 3...c5, 4 Ngf3 and 4 exd5 Qxd5.} (15... Rd8 $14 16. Qf3 Kxg7 17. Bh6+ Kg6) 16. Qd4 $1 $16 {[%emt 0:00:10][%cal Oc1h6]} e5 {[%emt 0:24:33]} (16... h6 $2 17. Bxh6+ (17. Qh4 Rh8 $16) 17... Kg6 18. Bxf8 $18) 17. Qh4 {[%emt 0:00:28][%mdl 1024] White has strong compensation.} Ng4 {[%emt 0:02:43] Prevents Bh6+. ...Qd8 is the strong threat. White is better.} 18. f3 $1 {[%emt 0:05:40]} Qd8 {[%emt 0:04:05] [#]} (18... Qd6 $16) 19. Bg5 $1 $18 {[%emt 0:17:56]} f6 {[%emt 0:04:33] [#]} 20. Bc1 {[%emt 0:21:01]} ({Don't do} 20. fxg4 $6 fxg5 21. Qxh2 Rf4 $16) 20... Bf4 {[%emt 0:07:18]} (20... f5 $2 21. Bg5 $18) 21. Bxf4 {[%emt 0:00:50]} ({Worse is} 21. fxg4 Bxc1 22. Raxc1 Qd4 $15) 21... exf4 {[%emt 0:01:34]} 22. Rad1 {[%emt 0:01:34] [#]} Qc7 $146 {[%emt 0:00:43] Hoping for ...Ne5.} ({Predecessor:} 22... Nf2+ 23. Qxf2 Qa5 24. Rd5 Qc7 25. Rc5 Qd6 26. Rh5 Kh8 27. Qh4 Qc7 28. c3 b5 {1-0 Maiko,J (2189)-Kostiukova,L UKR-ch U18 Girls 2001}) 23. fxg4 {[%emt 0:00:35] Black must now prevent g5.} h6 {[%emt 0:01:00] Black is weak on the light squares} (23... Kh8 24. Re4 Qg7) 24. Rd2 {[%emt 0:03:08] Threatens to win with Rde2.} b6 {[%emt 0:02:17]} 25. Rde2 {[%emt 0:03:34]} (25. Qh5 $18) 25... Ra7 $16 {[%emt 0:00:25]} 26. Re8 {[%emt 0:06:35]} (26. Bd5 $16 Qc5 27. Qh5) 26... Qc5 $14 {[%emt 0:02:22]} 27. c3 {[%emt 0:08:22]} Rc7 {[%emt 0:02:48]} 28. Qh3 {[%emt 0:04:36] White is more active.} ({White should play} 28. R1e4 $16) 28... Rxe8 $1 $11 {[%emt 0:02:50]} 29. Rxe8 $40 {[%emt 0:00:14][%mdl 128] Black needs to defend precisely.} Rf7 $2 {[%emt 0:01:14][%mdl 8192]} 30. Bxf7 $18 {[%emt 0:01:11] White is clearly winning.} Kxf7 {[%emt 0:00:03]} 31. Rh8 {[%emt 0:01:36]} Qe3 {[%emt 0:00:55]} 32. Qh5+ {[%emt 0:00:33]} Ke7 {[%emt 0:00:25]} 33. Re8+ {[%emt 0:00:07][%mdl 64] Skewer.   Weighted Error Value: White=0.62/Black=0.46} ({And not} 33. Rxc8 Qe1+ 34. Kh2 Qg3+ 35. Kh1 Qe1+ 36. Kh2 Qg3+ 37. Kh1 Qe1+ $11) 1-0

[Event "CZE-ch U16 Open 2023"]
[Site "Teplice"]
[Date "2023.03.14"]
[Round "5.12"]
[White "Slaby, Matej"]
[Black "Mrazek, Adam"]
[Result "1-0"]
[ECO "A48"]
[WhiteElo "1932"]
[BlackElo "1745"]
[Annotator "TA"]
[PlyCount "81"]
[EventDate "2023.03.09"]
[EventType "swiss"]
[EventCountry "CZE"]
[SourceTitle "playchess.com"]
[Source "ChessBase"]
[SourceQuality "1"]
[TimeControl "40/5400+30:1800+30"]

{[%evp 9,81,0,0,-9,1,-10,-8,-22,-19,-17,0,-36,-39,-32,-10,-14,-6,-11,0,0,18,21,26,18,38,0,0,0,0,0,38,-33,0,-29,-28,-46,-54,-57,-46,-69,-56,-69,-7,-45,0,0,74,50,62,0,157,144,146,93,92,91,92,85,743,41,32,26,52,57,60,73,96,106,491,502,1562,1501,1183,1134]} 1. Nf3 Nf6 2. d4 g6 3. Bf4 Bg7 4. h3 O-O 5. e3 d6 6. Bh2 {A48: 1 d4 Nf6 2 Nf3 g6: Torre, London and Colle Systems.} b6 7. Bd3 Bb7 8. Nbd2 {The position is equal.} Nbd7 {[%cal Oe7e5]} 9. O-O Re8 10. e4 e5 11. dxe5 dxe5 12. b4 {[#]} Qe7 $146 ({Predecessor:} 12... Nh5 13. Re1 Qe7 14. c3 a5 15. a3 Nf4 16. Bf1 Red8 17. Qc2 h5 18. Nc4 Qf6 {0-1 Golubov,S (2482)-Mamedyarov,S (2817) Wch Blitz St Petersburg 2018 (2)}) 13. Rb1 c5 14. a3 c4 {[%mdl 64] Deflection} 15. Bxc4 Nxe4 16. Nxe4 Bxe4 17. Re1 (17. Qe2 $5 {[%cal Re2e4]} Bb7 18. Rfd1 $11) 17... Bb7 18. Bd5 Bxd5 19. Qxd5 Rac8 20. Qa2 (20. Rbd1 $14 Rc7 21. Bg3) 20... Kh8 21. Re2 f6 22. c4 Nf8 23. Rd1 Bh6 24. Rde1 {[%cal Rf3e5]} Qf7 $1 25. Re4 b5 (25... Red8 $15) 26. g4 {[%cal Og4g5]} (26. Rh4 $2 Bg7 27. Qc2 bxc4 $19) (26. Bxe5 $5 fxe5 27. Nxe5 $11) 26... bxc4 {Strongly threatening ...Ne6.} 27. g5 $1 Bg7 (27... Bxg5 $11 28. Nxg5 fxg5) 28. gxf6 $16 Bxf6 29. Bxe5 (29. Nxe5 $14 Bxe5 30. Bxe5+ Kg8 31. Qc2) 29... Bxe5 $2 (29... Nd7 $1 $11) 30. Nxe5 Qf5 31. Qe2 ({White should try} 31. Rxc4 h5 32. Rxc8 Rxc8 33. Qf7) 31... Kg7 {...c3 would be deadly.} 32. Nxc4 {[%mdl 64] Discovered Attack} (32. Rxc4 $2 {perishes.} Qxe5 33. Qxe5+ Rxe5 34. Rxe5 Rxc4 $19) 32... Rxe4 33. Qxe4 Qxh3 $2 {[%mdl 8192]} (33... Qxe4 $16 34. Rxe4 Kf6) 34. Re3 $2 (34. Nd6 $18) 34... Qd7 $14 35. Rd3 Qe6 {Black is weak on the dark squares} 36. Qd4+ Kg8 37. Ne5 Rc1+ {[#]} 38. Kg2 $1 Re1 $2 {[%mdl 8192] [#]} (38... Qe7 $16) 39. Ng4 $1 $18 {[%cal Rg4h6] Active counter play! White is clearly winning.} Qe4+ (39... g5 $142 40. Rf3 Nd7 41. Qxd7 {[%mdl 64] Remove Defender, Decoy} Qxd7 42. Nf6+ Kg7 43. Nxd7 Re7) 40. Qxe4 Rxe4 41. Nf6+ {Weighted Error Value: White=0.29 (precise) /Black=0.42} 1-0

[Event "CZE-ch U16 Open 2023"]
[Site "Teplice"]
[Date "2023.03.15"]
[Round "6.1"]
[White "Paseka, Matyas"]
[Black "Lang, Simon"]
[Result "0-1"]
[ECO "C04"]
[WhiteElo "2082"]
[BlackElo "1974"]
[Annotator "TA"]
[PlyCount "150"]
[EventDate "2023.03.09"]
[EventType "swiss"]
[EventCountry "CZE"]
[SourceTitle "playchess.com"]
[Source "ChessBase"]
[SourceQuality "1"]
[TimeControl "40/5400+30:1800+30"]

{[%evp 16,150,42,48,48,38,32,32,35,35,37,29,39,-4,34,41,52,-66,70,70,68,-10,0,0,0,-94,9,-29,0,0,68,67,107,102,122,47,27,-177,-169,-177,-180,-262,-247,-282,-289,-289,-294,-308,-305,-312,-308,-308,-310,-306,-289,-313,-270,-294,-287,-294,-262,-285,-245,-286,-278,-288,-255,-262,-197,-256,-233,-238,-223,-224,-199,-360,-364,-370,-366,-356,-341,-493,-496,-479,-485,-523,-511,-691,-677,-648,-542,-746,-713,-851,-847,-765,-699,-819,-806,-5277,-5164,-5189,-2442,-29974,-29975,-29976,-29976,-29976,-291,-29977,-29978,-29974,-29965,-29968,-29969,-29975,-29976,-29975,-29977,-29978,-29979,-29983,-29984,-29984,-29983,-29983,-29983,-29983,-29984,-29984,-29983,-29983,-29982,-29982,-29982,-29984,-29981]} 1. e4 {[%emt 0:00:03]} e6 {[%emt 0:00:24]} 2. d4 {[%emt 0:00:07]} d5 {[%emt 0:00:25]} 3. Nd2 {[%emt 0:00:09][%cal Bb1d2,Bd2f1,Bf1e3,Be3g4][%mdl 32]} Nc6 {[%emt 0:00:32]} 4. Ngf3 {[%emt 0:00:17]} Nf6 {[%emt 0:00:31]} 5. e5 {[%emt 0:00:07]} Nd7 {[%emt 0:00:55]} 6. Be2 {[%emt 0:00:16]} f6 {[%emt 0:00:55]} 7. exf6 {[%emt 0:00:09]} Qxf6 {[%emt 0:00:45]} 8. Nf1 {[%emt 0:00:24]} Bd6 {[%emt 0:01:10]} 9. Ne3 {[%emt 0:00:27]} b6 {[%emt 0:01:28] C04: French Tarrasch: 3...Nc6.} 10. Ng4 {[%emt 0:16:08]} Qf5 {[%emt 0:02:26]} 11. h3 {[%emt 0:02:11]} Bb7 {[%emt 0:04:40] White is slightly better.} 12. Bd3 {[%emt 0:05:59]} Qh5 {[%emt 0:08:11]} 13. O-O {[%emt 0:11:48]} O-O-O {[%emt 0:06:37]} 14. Be2 {[%emt 0:09:00]} Qf5 {[%emt 0:09:06]} 15. Re1 {[%emt 0:02:30] [#]} Rde8 $146 {[%emt 0:03:32]} ({Predecessor:} 15... h5 16. Bd3 Qf8 17. Nge5 Ncxe5 18. dxe5 Be7 19. a4 a6 20. Bg6 Qg8 21. Bg5 Bxg5 22. Nxg5 Rf8 23. Ra3 Rh6 24. Bxh5 {1-0 Rogic,D (2494)-Soln,P (2382) Bled op 21st 2000 (5)}) 16. Bd2 {[%emt 0:03:12]} (16. c3 $14) 16... Rhf8 {[%emt 0:03:16] Black is much more active.} ({Black should play} 16... h5 $1 $15 17. Bd3 Qf8) 17. Bd3 $1 $14 {[%emt 0:02:29]} Qh5 {[%emt 0:03:58][%cal Of8f3]} 18. Bc3 {[%emt 0:00:46]} ({White should try} 18. c3 $14) 18... Rf4 {[%emt 0:06:01]} 19. Bb5 {[%emt 0:03:49]} Qf7 {[%emt 0:05:18]} 20. Qd2 {[%emt 0:17:27] [#]} (20. Ng5 $11 {remains equal.} Qg6 21. Nf3) 20... Rf5 {[%emt 0:07:37]} (20... Rxf3 $1 $17 21. gxf3 h5) 21. Nge5 {[%emt 0:07:30]} Ncxe5 {[%emt 0:06:12]} (21... Bxe5 {simplifies} 22. Bxc6 Bxc6 23. Nxe5 Nxe5 24. Rxe5 Rxe5 25. dxe5 a5) 22. dxe5 {[%emt 0:00:38]} Bc5 {[%emt 0:04:47]} (22... Be7 $11) 23. b4 $1 {[%emt 0:01:45]} Be7 {[%emt 0:12:49]} 24. Nd4 {[%emt 0:00:55]} Rh5 {[%emt 0:00:47][%cal Bf5h5,Bh5h4,Bh4d4][%mdl 32]} 25. Qe2 {[%emt 0:01:26]} ({White must play} 25. f4 $16) 25... Rh4 {[%emt 0:02:07][%cal Oe7b4]} 26. Ba6 $2 {[%emt 0:02:26] [#] Loses the game.} (26. Rab1 $11 {and White is okay.}) 26... Bxb4 $1 $19 {[%emt 0:01:32][%mdl 576] Deflection} 27. Bxb7+ {[%emt 0:01:53]} (27. Bxb4 Rxd4) 27... Kxb7 {[%emt 0:00:05]} 28. Bxb4 {[%emt 0:04:34]} (28. Qb5 $142) 28... Rxd4 {[%emt 0:00:06]} 29. Bc3 {[%emt 0:00:15]} Rc4 {[%emt 0:00:54]} 30. Qd2 {[%emt 0:02:34]} Rf8 {[%emt 0:01:11]} 31. f3 {[%emt 0:00:46]} Qf4 {[%emt 0:00:25]} 32. Qxf4 {[%emt 0:02:11]} Rfxf4 {[%emt 0:00:06]} 33. Bd2 {[%emt 0:00:11]} Rf5 {[%emt 0:00:22]} 34. c3 {[%emt 0:00:10]} Nc5 {[%emt 0:00:52]} (34... Rxe5 $2 {loses.} 35. Rxe5 Nxe5 36. Re1 $19) (34... Nxe5 $2 35. Re3 $19) 35. Re3 {[%emt 0:00:23]} Ka6 {[%emt 0:00:55]} 36. Rb1 {[%emt 0:01:12]} Ra4 {[%emt 0:00:34]} 37. Rb2 {[%emt 0:00:08]} b5 {[%emt 0:00:25]} 38. g3 {[%emt 0:00:38]} Nb7 {[%emt 0:00:56]} 39. g4 {[%emt 0:00:50]} Rf7 {[%emt 0:00:20]} 40. Bc1 {[%emt 0:00:28]} Na5 {[%emt 0:00:28]} 41. Rf2 {[%emt 0:30:13]} Nc4 {[%emt 0:31:01]} 42. Re1 {[%emt 0:00:17]} (42. Ree2 $142) 42... Kb6 {[%emt 0:03:00]} 43. f4 {[%emt 0:00:07]} Kc6 {[%emt 0:00:27]} 44. f5 {[%emt 0:00:13]} Kd7 {[%emt 0:00:59]} 45. fxe6+ $2 {[%emt 0:01:24]} (45. Kg2) 45... Kxe6 {[%emt 0:00:06] Threatens to win with ...Rxf2.} 46. Rxf7 {[%emt 0:00:07]} Kxf7 {[%emt 0:00:03][%mdl 4096] Endgame KRB-KRN} 47. e6+ {[%emt 0:00:05]} Ke8 {[%emt 0:00:39]} 48. Rf1 {[%emt 0:02:54]} (48. Re2 {was called for.}) 48... Rxa2 {[%emt 0:01:15] Strongly threatening ...Ra1.} 49. Bg5 {[%emt 0:00:57] And now e7 would win.} Nd6 {[%emt 0:01:22]} 50. Bf4 {[%emt 0:00:22]} Ke7 {[%emt 0:02:11]} 51. Bxd6+ {[%emt 0:00:05]} Kxd6 {[%emt 0:00:14] KR-KR} 52. Rf7 {[%emt 0:00:06]} Re2 {[%emt 0:00:16]} 53. Rd7+ {[%emt 0:01:02]} Kc6 {[%emt 0:00:00]} 54. Rxg7 {[%emt 0:00:00]} d4 {[%emt 0:00:00][%mdl 64] Deflection} 55. cxd4 {[%emt 0:00:00]} b4 {[%emt 0:00:00][%cal Bb5b4,Bb4b3,Bb3b2][%mdl 32] ...b3 would be deadly.} 56. Kf1 {[%emt 0:00:00]} Rxe6 {[%emt 0:00:00] aiming for ...b3.} 57. d5+ {[%emt 0:00:00]} Kxd5 {[%emt 0:00:00]} 58. Rxc7 {[%emt 0:00:00]} Rb6 {[%emt 0:00:00]} (58... b3 $142 59. Rxa7 Rb6 60. Rd7+ Kc4) 59. Rxa7 {[%emt 0:00:00]} b3 {[%emt 0:00:00]} 60. Ra1 {[%emt 0:00:00]} b2 {[%emt 0:00:00]} 61. Rb1 {[%emt 0:00:00]} Rb3 $2 {[%emt 0:00:00]} (61... Kd4 {mates} 62. Ke2 Kc3 63. Ke3 Rb4 64. Rf1 b1=Q 65. Rxb1 Rxb1 66. Kf4 Rh1 67. Kg3 Kd4 68. Kg2 Rb1 69. Kf2 Rb2+ 70. Kg3 Ke3 71. g5 Rb4 72. h4 Rf4 73. h5 Rf1 74. Kg4 Ke4 75. Kg3 Rg1+ {[%mdl 64] Skewer} 76. Kf2 Rxg5 77. h6 Rg4 78. Ke2 Rg2+ 79. Ke1 Rh2 80. Kf1 Ke3 81. Kg1 Rf2 82. Kh1 Kf3 83. Kg1 Kg3 84. Kh1 Rf1#) 62. Kg2 $2 {[%emt 0:00:00]} (62. Ke1 $19 Kc4 63. Kd2) 62... Ke4 {[%emt 0:00:00] Black mates.} 63. Re1+ {[%emt 0:00:00]} Kf4 {[%emt 0:00:00]} 64. Rb1 {[%emt 0:00:00]} Kg5 {[%emt 0:00:00]} 65. Kh2 {[%emt 0:00:28]} Kh4 {[%emt 0:00:00]} 66. Kg2 {[%emt 0:00:39]} h6 {[%emt 0:00:00][%cal Bh7h6,Bh6g5,Bg5g4,Bg4g3][%mdl 32]} ({Weaker is} 66... Rxh3 67. Rxb2 Rg3+ 68. Kf1 $11) 67. Kg1 {[%emt 0:01:56]} Kxh3 {[%emt 0:00:00]} ({Inferior is} 67... Rxh3 68. Rxb2 Rg3+ 69. Kh1 $11) 68. g5 {[%emt 0:00:05]} hxg5 {[%emt 0:00:00]} 69. Kf2 {[%emt 0:00:04]} Kg4 {[%emt 0:00:00]} 70. Ke2 {[%emt 0:00:31]} Kf4 {[%emt 0:00:00]} 71. Kd2 {[%emt 0:00:07]} g4 {[%emt 0:00:00]} 72. Kc2 {[%emt 0:00:04]} Rb8 {[%emt 0:00:00]} 73. Rf1+ {[%emt 0:00:05]} Kg3 {[%emt 0:00:00]} 74. Kb1 {[%emt 0:00:04]} Kg2 {[%emt 0:00:00]} 75. Rf7 {[%emt 0:00:06]} g3 {[%emt 0:00:00] Weighted Error Value: White=0.64/Black=0.27 (precise)} 0-1

[Event "CZE-ch U16 Open 2023"]
[Site "Teplice"]
[Date "2023.03.15"]
[Round "6.2"]
[White "Fizer, Marek"]
[Black "Janous, Marek"]
[Result "1-0"]
[ECO "B69"]
[WhiteElo "1929"]
[BlackElo "2124"]
[Annotator "TA"]
[PlyCount "129"]
[EventDate "2023.03.09"]
[EventType "swiss"]
[EventCountry "CZE"]
[SourceTitle "playchess.com"]
[Source "ChessBase"]
[SourceQuality "1"]
[TimeControl "40/5400+30:1800+30"]

{[%evp 22,129,58,43,47,57,56,43,45,15,32,30,48,14,58,47,77,33,46,0,143,135,129,135,128,101,146,123,195,198,193,191,253,243,295,338,356,121,173,188,188,182,186,198,217,213,287,293,335,345,333,335,343,329,313,295,295,294,294,294,294,277,295,297,495,480,731,724,704,649,484,71,72,38,45,32,33,32,68,68,70,68,70,70,71,70,171,175,12844,9748,29970,29971,29972,29973,29971,29972,29974,29975,29975,29976,29980,29981,29980,29981,29989,29989,29990,29991,29991,29992]} 1. e4 {[%emt 0:00:11]} c5 {[%emt 0:00:30]} 2. Nf3 {[%emt 0:00:23]} d6 {[%emt 0:00:11]} 3. d4 {[%emt 0:00:24]} cxd4 {[%emt 0:00:06]} 4. Nxd4 {[%emt 0:00:12]} Nf6 {[%emt 0:00:10]} 5. Nc3 {[%emt 0:00:09]} Nc6 {[%emt 0:00:46]} 6. Bg5 {[%emt 0:00:23]} e6 {[%emt 0:00:07]} 7. Qd2 {[%emt 0:00:22]} a6 {[%emt 0:00:07]} 8. O-O-O {[%emt 0:00:44]} Bd7 {[%emt 0:00:05]} 9. f4 {[%emt 0:00:15]} Be7 {[%emt 0:00:06]} 10. Nf3 {[%emt 0:03:14]} b5 {[%emt 0:00:06]} 11. Bxf6 {[%emt 0:01:31]} gxf6 {[%emt 0:00:12]} 12. Kb1 {[%emt 0:02:06]} b4 {[%emt 0:15:44] B69: Sicilian: Richter-Rauzer: 7...a6 8 0-0-0 Bd7 9 f4 Be7 10 Nf3 b5 11 Bxf6.} 13. Ne2 {[%emt 0:08:18][%cal Of4f5]} h5 {[%emt 0:01:26]} 14. Ned4 {[%emt 0:07:18]} Qb6 {[%emt 0:01:56] White is slightly better.} 15. Bc4 {[%emt 0:10:54]} Na5 {[%emt 0:31:15][%cal Bc6a5,Ba5b7,Bb7c5][%mdl 32]} 16. Bd3 {[%emt 0:05:52]} Nb7 {[%emt 0:02:00]} 17. Rhe1 {[%emt 0:05:21]} Nc5 {[%emt 0:01:35]} 18. Bc4 {[%emt 0:10:12] [#]} O-O-O $146 {[%emt 0:01:29]} ({Predecessor:} 18... Rc8 19. Nb3 Nb7 20. Qe2 a5 21. Nbd4 a4 22. Bb5 Bxb5 23. Nxb5 Qc5 24. f5 e5 {1-0 Perunovic,M (2591)-Niemann,H (2459) New York Marshall Spring GM 2020 (3)}) 19. Rc1 {[%emt 0:05:17]} Kb8 {[%emt 0:06:22]} 20. c3 {[%emt 0:01:27]} (20. f5 $14) 20... b3 {[%emt 0:03:34]} 21. Nxb3 {[%emt 0:06:00]} Bc6 {[%emt 0:03:59]} 22. Nxc5 {[%emt 0:07:23]} dxc5 {[%emt 0:00:11]} 23. Qc2 {[%emt 0:06:23]} Ka7 {[%emt 0:01:41]} 24. f5 {[%emt 0:03:14]} Bb5 {[%emt 0:05:28]} (24... exf5 $16 {keeps fighting.} 25. exf5 (25. Bxf7 Bxe4 26. Rxe4 fxe4 $11) 25... Bd6 26. Bxf7 Qb7) 25. Bxb5 $18 {[%emt 0:02:00]} axb5 {[%emt 0:00:07]} 26. e5 {[%emt 0:01:24]} Rd7 {[%emt 0:10:39]} (26... h4 {was called for.} 27. fxe6 fxe6 28. exf6 Bxf6) 27. fxe6 {[%emt 0:06:35]} Qxe6 {[%emt 0:02:46]} 28. exf6 {[%emt 0:04:37]} Qxf6 {[%emt 0:00:17]} 29. Qb3 $2 {[%emt 0:01:24] [#]} (29. c4 $18) 29... Rb7 {[%emt 0:00:48]} (29... Qf5+ $16 {was worth a try.} 30. Qc2 Qxc2+ 31. Rxc2 Bf6) 30. Rcd1 {[%emt 0:01:13]} Qg6+ {[%emt 0:05:38]} 31. Qc2 {[%emt 0:00:17]} Qxc2+ {[%emt 0:02:15]} 32. Kxc2 {[%emt 0:00:06]} Rg8 {[%emt 0:00:35]} 33. Re2 {[%emt 0:00:22]} Bf6 {[%emt 0:01:03]} 34. Rd5 {[%emt 0:00:28][%csl LRc5,LRh5]} Rc8 {[%emt 0:01:22]} 35. Rxh5 {[%emt 0:00:28]} b4 {[%emt 0:00:21]} 36. Rf5 {[%emt 0:00:32]} bxc3 {[%emt 0:01:54]} 37. bxc3 {[%emt 0:01:08]} ({Not} 37. Rxf6 Rxb2+ 38. Kxc3 Rxe2 $17) 37... Rc6 {[%emt 0:00:10]} 38. g4 {[%emt 0:00:43]} Ra6 {[%emt 0:00:05]} 39. Kd3 {[%emt 0:00:37]} (39. Rxc5 Bxc3 40. Kxc3 Ra3+ 41. Kd4 Rxf3 $18) 39... c4+ {[%emt 0:00:34]} 40. Kxc4 {[%emt 0:00:31]} Rc7+ {[%emt 0:01:07]} 41. Kd3 {[%emt 0:04:45] Threatens to win with Nd4.} ({Don't play} 41. Rc5 Ra4+ 42. Kd5 Rxc5+ 43. Kxc5 Rxg4 $18) 41... Rxc3+ {[%emt 0:00:49]} 42. Kd2 {[%emt 0:00:23]} Rxa2+ $2 {[%emt 0:05:16]} (42... Rc7 43. Ke1 Bc3+ 44. Kf2 f6) 43. Ke1 {[%emt 0:00:18]} Rxe2+ {[%emt 0:04:05]} (43... Ra6 $142 44. g5 Bh8 45. Rxf7+ Kb6) 44. Kxe2 {[%emt 0:00:08][%mdl 4096] Endgame KRB-KRN} Rc6 {[%emt 0:00:15]} 45. g5 {[%emt 0:00:39]} Bxg5 {[%emt 0:00:08]} 46. Rxf7+ $2 {[%emt 0:00:46]} ({Less strong is} 46. Nxg5 Rc2+ 47. Kd3 Rxh2 $14) (46. Rxg5 $18 {and White stays clearly on top.} Kb6 47. Rf5) 46... Ka6 {[%emt 0:02:12]} 47. Kd3 {[%emt 0:05:26]} Bd8 {[%emt 0:04:36]} 48. Ke4 {[%emt 0:10:05]} Kb6 {[%emt 0:02:25]} 49. Rd7 {[%emt 0:01:53]} Bc7 {[%emt 0:03:31]} 50. h4 {[%emt 0:02:04]} Rf6 {[%emt 0:08:41]} 51. h5 {[%emt 0:05:59]} Kc6 {[%emt 0:01:06]} 52. Rg7 {[%emt 0:00:53] Rg6 is the strong threat.} Rf4+ {[%emt 0:01:48]} 53. Ke3 {[%emt 0:00:30][%cal Og7c7] Threatening mate with Rxc7+! White is more active.} Rf8 {[%emt 0:00:52]} ({Better is} 53... Rb4 $14) 54. Nd4+ {[%emt 0:00:28][%mdl 64] [#] Deflection} Kd5 $2 {[%emt 0:01:53]} (54... Kb6 55. Rg6+ Ka5) 55. Rxc7 {[%emt 0:01:38] White wants to mate with h6. KRN-KR} Re8+ {[%emt 0:00:34]} 56. Kf4 {[%emt 0:01:02] White mates.} Re4+ {[%emt 0:00:36]} 57. Kf5 {[%emt 0:01:28]} Re5+ {[%emt 0:00:07]} 58. Kg6 {[%emt 0:00:23]} Kxd4 {[%emt 0:00:36] KR-KR} 59. h6 {[%emt 0:00:12]} Re6+ {[%emt 0:00:51]} 60. Kg7 {[%emt 0:00:24]} Ke5 {[%emt 0:00:46]} 61. h7 {[%emt 0:00:34]} Kd6 {[%emt 0:00:15]} 62. Ra7 {[%emt 0:00:36]} Re1 {[%emt 0:00:00]} 63. Ra6+ {[%emt 0:00:23]} Ke7 {[%emt 0:00:00]} 64. h8=Q {[%emt 0:00:07]} Rg1+ {[%emt 0:00:01]} 65. Rg6 {[%emt 0:00:07] Weighted Error Value: White=0.24 (precise) /Black=0.34} 1-0

[Event "CZE-ch U16 Open 2023"]
[Site "Teplice"]
[Date "2023.03.15"]
[Round "6.3"]
[White "Werner, Hong Quan Dan"]
[Black "Prazak, Daniel"]
[Result "0-1"]
[ECO "C67"]
[WhiteElo "2085"]
[BlackElo "2064"]
[Annotator "TA"]
[PlyCount "56"]
[EventDate "2023.03.09"]
[EventType "swiss"]
[EventCountry "CZE"]
[SourceTitle "playchess.com"]
[Source "ChessBase"]
[SourceQuality "1"]
[TimeControl "40/5400+30:1800+30"]

{[%evp 14,56,0,0,4,0,0,6,0,0,0,7,12,-20,-16,-16,-17,-32,-5,-39,-38,-33,-20,-47,-41,-40,-29,-52,-43,-53,-57,-120,-92,-231,-238,-443,-417,-410,-406,-595,-578,-703,-545,-1025,-999]} 1. e4 {[%emt 0:00:13]} e5 {[%emt 0:01:17]} 2. Nf3 {[%emt 0:00:20]} Nc6 {[%emt 0:00:20]} 3. Bb5 {[%emt 0:00:32]} Nf6 {[%emt 0:00:33]} 4. O-O {[%emt 0:00:20]} Nxe4 {[%emt 0:00:55]} 5. Re1 {[%emt 0:00:33]} Nd6 {[%emt 0:00:12]} 6. Nxe5 {[%emt 0:08:04]} Be7 {[%emt 0:00:51]} 7. Ba4 {[%emt 0:00:47]} Nxe5 {[%emt 0:01:10]} 8. Rxe5 {[%emt 0:01:17]} O-O {[%emt 0:00:11] C67: Ruy Lopez: Berlin Defence: 4 0-0 Nxe4.} 9. c3 {[%emt 0:03:11]} Ne8 {[%emt 0:09:33][%cal Bd6e8,Be8f6,Bf6e4][%mdl 32]} 10. d4 {[%emt 0:03:00] [#]} d5 $146 {[%emt 0:05:58] The position is equal.} ({Predecessor:} 10... Bf6 11. Re1 d5 12. Bc2 Be6 13. Bh6 Qe7 14. Na3 Bh4 15. Bf4 g6 16. Qd2 c6 {½-½ Sjoberg,V-Lundberg,F Nordiska SFB Kongress-01 Klass 02 1901 (2)}) 11. Nd2 {[%emt 0:06:16]} Bd6 {[%emt 0:05:21]} 12. Re1 {[%emt 0:00:22]} Nf6 {[%emt 0:04:26]} 13. h3 {[%emt 0:01:11]} Bf5 {[%emt 0:03:27]} 14. Nf3 {[%emt 0:01:08]} Ne4 {[%emt 0:06:09]} 15. Bc2 {[%emt 0:00:22][%cal Oc3c4]} Qf6 {[%emt 0:02:19]} 16. Be3 {[%emt 0:08:18][%cal Of3e5]} Rfe8 {[%emt 0:03:53]} 17. Nd2 {[%emt 0:02:17]} c6 {[%emt 0:03:30]} 18. Nf1 {[%emt 0:03:55]} Qg6 {[%emt 0:08:03]} 19. Qf3 {[%emt 0:01:22]} Bd7 {[%emt 0:07:35]} 20. Bf4 {[%emt 0:01:27]} Ng5 {[%emt 0:02:14][%mdl 64] [#] Discovered Attack} 21. Bxg5 {[%emt 0:05:10]} Qxc2 {[%emt 0:01:08]} 22. Reb1 {[%emt 0:11:46] White is weak on the light squares} ({Better is} 22. Bf4 $15 Bf8 23. Red1) 22... Qg6 {[%emt 0:02:35] Black has more active pieces. The white rooks are badly placed.} 23. Bh4 {[%emt 0:01:50] [#] Loses the game.} (23. Bd2 $17) 23... f5 $1 $19 {[%emt 0:07:57][%cal Bf7f5,Bf5f4][%mdl 32] aiming for ...f4.} 24. Qd3 $2 {[%emt 0:11:14]} (24. Bg3 f4 25. Bh2) 24... Qh5 {[%emt 0:01:41]} 25. Bg3 {[%emt 0:00:21]} f4 {[%emt 0:00:09] Hoping for ...Bf5.} 26. Bh2 {[%emt 0:00:07]} (26. Re1 $142 fxg3 27. Nxg3) 26... Bf5 {[%emt 0:00:33] Black is clearly winning.} 27. Qd1 {[%emt 0:00:38]} Qg6 {[%emt 0:00:08]} 28. f3 {[%emt 0:11:31]} Bc2 {[%emt 0:01:00][%mdl 64] Deflection.   Weighted Error Value: White=0.65/Black=0.13 (very precise)} 0-1